bitfinex/quotes_ETHUSD_20260209
["timestamp","ask_amount","ask_price","bid_price","bid_amount"]
[1770671542190,4.72200659,2117.8,2117.2,0.001]
[1770671542390,4.72200659,2117.8,2117.4,0.001]
[1770671542989,1.0134969,2118.4,2117.4,0.001]
[1770671543198,4.48019166,2118.3,2117.4,0.90264231]
[1770671544181,4.48019166,2118.3,2117.4,1.18164094]
[1770671544382,0.05631688,2118.2,2117.4,0.90264231]
[1770671544757,0.05631688,2118.2,2117.4,2.08332901]
[1770671545166,0.05631688,2118.2,2117.4,0.90264231]
[1770671545362,0.05631688,2118.0,2117.4,0.001]
[1770671547583,1.18041456,2117.9,2117.4,0.001]
[1770671548974,1.1803031,2118.2,2117.4,0.90264231]
[1770671550490,1.23661998,2118.2,2117.4,2.08330307]
[1770671552603,1.1803031,2118.2,2117.5,0.90164231]
[1770671553301,1.23661998,2118.2,2117.5,0.90164231]
[1770671554302,1.23661998,2118.2,2117.4,0.001]
[1770671555306,0.002,2118.0,2117.4,0.001]
[1770671556201,0.95918002,2118.0,2117.4,0.001]
[1770671556392,0.002,2118.0,2117.4,0.90264231]
[1770671556800,0.002,2118.0,2117.5,0.90164231]
[1770671558683,0.002,2118.0,2117.7,0.90164231]
[1770671558882,0.002,2118.0,2117.6,1.18058179]
[1770671559082,0.002,2118.0,2117.7,0.90164231]
[1770671560697,0.002,2118.0,2117.9,0.90164231]
[1770671560898,0.002,2118.2,2117.9,0.90164231]
[1770671561085,0.002,2118.5,2117.9,0.90164231]
[1770671562209,0.002,2118.7,2117.9,0.90164231]
[1770671563017,0.002,2118.7,2118.1,0.90164231]
[1770671563589,3.3,2119.5,2118.3,0.90164231]
[1770671563822,4.47955809,2119.5,2118.3,0.90164231]
[1770671564283,0.95718002,2119.4,2118.3,0.90164231]
[1770671564479,0.05631688,2119.3,2118.3,0.90164231]
[1770671565501,1.17969044,2119.2,2118.4,2.08177826]
[1770671568206,1.17969044,2119.2,2118.4,1.98177826]
[1770671568608,0.002,2119.0,2118.4,1.98177826]
[1770671569408,0.002,2119.0,2118.4,2.08176436]
[1770671569794,0.002,2119.0,2118.4,1.18012205]
[1770671569994,0.002,2119.0,2118.4,1.18013047]
[1770671570991,0.002,2119.0,2118.3,1.18014537]
[1770671571191,0.002,2119.0,2118.4,1.08013496]
[1770671571714,0.002,2119.0,2118.3,4.72076382]
[1770671571920,0.002,2119.0,2118.4,0.97938879]
[1770671575214,0.002,2119.0,2118.5,1.18008024]
[1770671577625,0.002,2119.0,2118.5,2.15946903]
[1770671579130,0.002,2119.0,2118.6,0.97938879]
[1770671579538,0.002,2119.0,2118.7,1.17996884]
[1770671579897,0.002,2119.0,2118.6,2.1593686]
[1770671580213,0.002,2119.0,2118.6,1.18002407]
[1770671580818,0.002,2119.0,2118.6,1.18102407]
[1770671581138,0.002,2118.8,2118.7,0.97938879]
[1770671581942,0.002,2118.8,2118.7,2.15935763]
[1770671583139,0.002,2119.0,2118.7,2.15935763]
[1770671583441,0.002,2119.2,2118.7,2.15935763]
[1770671584127,1.17908698,2120.3,2119.1,11.49439804]
[1770671584319,1.17908698,2120.3,2118.7,12.67436688]
[1770671584320,2.10417801,2120.3,2119.3,0.97938879]
[1770671584643,0.92509103,2120.2,2119.2,3.298]
[1770671584815,0.98140791,2120.1,2119.3,3.298]
[1770671586141,0.92509103,2119.6,2119.0,4.47779911]
[1770671586913,0.92509103,2119.6,2119.0,3.298]
[1770671587343,0.98140791,2119.5,2119.0,3.298]
[1770671588237,1.17957912,2119.4,2119.0,3.298]
[1770671590444,0.92509103,2119.7,2119.0,3.298]
[1770671590822,0.98140791,2119.7,2119.0,3.298]
[1770671591950,0.98140791,2119.5,2119.0,3.298]
[1770671592332,2.10467015,2119.4,2119.0,3.298]
[1770671593551,0.92509103,2119.8,2119.0,4.47779596]
[1770671593850,5.69895647,2119.8,2119.2,0.001]
[1770671594550,0.92509103,2119.7,2119.2,0.001]
[1770671595838,4.77386544,2119.8,2119.2,0.001]
[1770671596043,5.69895647,2119.8,2119.2,0.001]
[1770671596855,5.64263959,2119.8,2119.2,0.001]
[1770671600485,0.9057939,2119.7,2119.2,0.001]
[1770671600688,0.96211078,2119.7,2119.2,0.001]
[1770671602181,1.17946782,2119.6,2119.2,0.001]
[1770671604364,0.9057939,2119.5,2119.2,0.001]
[1770671606181,2.08531737,2119.5,2119.4,0.001]
[1770671606481,2.08531737,2119.5,2119.1,0.001]
[1770671608262,0.96211078,2119.4,2119.1,0.001]
[1770671608655,0.96211078,2119.4,2118.6,0.001]
[1770671610291,2.08542868,2119.3,2118.6,0.001]
[1770671611466,0.9057939,2119.2,2118.6,0.001]
[1770671612284,1.17974611,2119.1,2118.6,0.001]
[1770671616293,4.7182174,2119.5,2118.6,0.9957647]
[1770671616593,5.6240113,2119.5,2118.6,0.9957647]
[1770671616780,0.9057939,2119.4,2118.6,0.9957647]
[1770671617095,0.96211078,2119.4,2118.6,0.9957647]
[1770671617593,1.17963478,2119.3,2118.6,0.9957647]
[1770671618083,1.17963478,2119.3,2118.8,0.001]
[1770671618672,2.08542868,2119.3,2118.8,0.001]
[1770671618994,0.96211078,2119.2,2118.8,0.001]
[1770671619167,0.96211078,2119.2,2118.6,0.001]
[1770671619997,2.08554001,2119.1,2118.6,0.001]
[1770671620799,0.96211078,2118.7,2118.3,0.001]
[1770671620983,0.9057939,2119.0,2118.3,0.001]
[1770671621186,0.96211078,2119.0,2118.3,0.001]
[1770671621771,1.17985747,2118.9,2118.3,0.001]
[1770671623691,1.17985747,2118.9,2118.3,0.9957647]
[1770671623991,4.71942989,2119.0,2118.4,0.9947647]
[1770671624297,1.17952347,2119.5,2118.4,0.9947647]
[1770671626306,1.17941218,2119.7,2118.6,0.9947647]
[1770671627906,0.05631688,2119.4,2118.6,0.9947647]
[1770671628080,0.96211078,2119.4,2118.5,0.9947647]
[1770671628400,1.17963478,2119.3,2118.5,0.9947647]
[1770671629800,0.99903843,2119.2,2118.3,4.20101094]
[1770671630287,1.17974611,2119.1,2118.3,4.20101094]
[1770671630494,1.17974611,2119.1,2118.6,0.001]
[1770671632424,4.72098447,2119.3,2118.6,0.001]
[1770671637900,0.94272155,2119.2,2118.6,0.001]
[1770671638106,0.94272155,2119.2,2118.4,0.001]
[1770671638107,0.99903843,2119.0,2118.4,0.001]
[1770671638306,0.05631688,2118.8,2118.4,0.001]
[1770671639321,0.05631688,2118.8,2118.3,0.001]
[1770671639322,1.17996884,2118.7,2118.3,0.001]
[1770671640995,4.718926,2119.2,2118.3,0.90301094]
[1770671641397,2.12441199,2119.3,2118.3,0.90301094]
[1770671641616,2.12441199,2119.3,2118.3,2.08320077]
[1770671641807,0.05631688,2119.2,2118.4,0.90201094]
[1770671642209,1.18169044,2119.3,2118.4,0.90201094]
[1770671642429,0.94272155,2119.2,2118.3,0.001]
[1770671642627,0.94272155,2119.2,2118.1,0.001]
[1770671642628,0.05631688,2118.2,2118.1,0.001]
[1770671642813,0.05631688,2118.2,2117.7,0.001]
[1770671643015,0.05631688,2118.0,2117.7,0.001]
[1770671643212,0.05631688,2118.0,2117.4,0.001]
[1770671643213,0.05631688,2117.8,2117.4,0.001]
[1770671643529,1.18052604,2117.7,2117.4,0.001]
[1770671643901,1.1803031,2118.1,2117.4,0.001]
[1770671644093,1.1803031,2118.1,2117.4,0.90301094]
[1770671644940,0.05631688,2118.0,2117.4,0.90301094]
[1770671645829,4.7212124,2118.5,2117.5,0.90201094]
[1770671646048,1.23645283,2118.4,2117.5,0.90201094]
[1770671649329,1.23645283,2118.4,2117.6,0.90201094]
[1770671651653,1.18013595,2118.4,2117.8,0.90201094]
[1770671653768,0.94272155,2118.7,2117.8,0.90201094]
[1770671653769,4.7760058,2118.8,2117.9,0.90201094]
[1770671655971,4.71968892,2118.8,2118.1,0.90201094]
[1770671657168,0.002,2118.6,2118.1,0.90201094]
[1770671658565,0.002,2118.6,2118.2,0.90201094]
[1770671663760,0.002,2118.6,2118.2,2.0822568]
[1770671664083,0.002,2118.6,2118.3,0.90453018]
[1770671664251,0.002,2118.8,2118.3,0.90453018]
[1770671665582,0.002,2118.8,2118.4,2.08466613]
[1770671665767,0.002,2118.8,2118.4,0.90453018]
[1770671667462,0.002,2118.8,2118.4,2.08465262]
[1770671668449,0.002,2118.8,2118.5,0.90453018]
[1770671669980,0.002,2118.8,2118.6,0.90453018]
[1770671672787,0.002,2118.8,2118.6,2.08455018]
[1770671672984,0.002,2118.8,2118.6,0.90453018]
[1770671673476,0.002,2118.8,2118.6,2.0845541]
[1770671673848,0.002,2119.1,2118.6,2.0845541]
[1770671674275,0.002,2119.1,2118.6,0.90453018]
[1770671674448,0.002,2119.1,2118.6,2.08454639]
[1770671676086,1.03855363,2119.1,2118.2,4.20353018]
[1770671676252,1.03855363,2119.1,2118.3,2.08471595]
[1770671676647,1.03855363,2119.1,2118.4,1.18012779]
[1770671676884,0.98223675,2119.1,2118.4,2.08461996]
[1770671677559,0.98223675,2119.1,2118.5,1.18007988]
[1770671678286,0.002,2119.1,2118.6,0.90453018]
[1770671680374,0.002,2119.1,2118.6,2.08453483]
[1770671682693,0.002,2119.1,2118.7,0.90453018]
[1770671682877,0.002,2119.1,2118.8,0.001]
[1770671683076,0.002,2118.9,2118.8,0.001]
[1770671683608,0.002,2119.1,2118.8,0.90553018]
[1770671683895,0.002,2119.1,2118.9,0.90453018]
[1770671684698,0.002,2119.1,2118.9,2.08434682]
[1770671685064,0.002,2119.1,2118.9,5.38234682]
[1770671685932,0.002,2119.1,2118.9,3.298]
[1770671686192,0.98223675,2119.1,2118.8,0.001]
[1770671687470,1.17980179,2119.0,2118.8,0.001]
[1770671687792,2.16003854,2119.0,2118.8,0.001]
[1770671688493,1.17980179,2119.0,2118.8,0.001]
[1770671689712,4.72120717,2119.1,2118.8,0.001]
[1770671689916,1.18174611,2119.1,2118.8,0.001]
[1770671691992,0.002,2119.1,2118.8,0.001]
[1770671697122,0.002,2119.1,2119.0,0.001]
[1770671699049,0.9812304,2119.1,2118.8,0.001]
[1770671699324,0.9812304,2119.1,2118.6,1e-08]
[1770671700098,0.9812304,2119.1,2118.5,0.001]
[1770671700316,0.002,2119.1,2118.7,0.92713767]
[1770671701708,0.002,2119.1,2118.7,2.10710121]
[1770671704741,0.002,2119.5,2118.8,0.92713767]
[1770671704905,0.002,2119.9,2119.1,0.92713767]
[1770671705339,0.002,2119.9,2119.5,0.92713767]
[1770671705957,1.18119065,2120.1,2119.3,3.298]
[1770671705958,0.002,2120.1,2119.7,0.92713767]
[1770671706232,0.002,2120.1,2119.3,3.298]
[1770671706233,0.002,2120.3,2119.9,0.92713767]
[1770671706936,0.002,2120.3,2119.9,2.10643198]
[1770671707436,0.9812304,2120.3,2119.2,0.92713767]
[1770671707742,0.9792304,2120.2,2119.4,1.17957832]
[1770671708032,0.9792304,2120.2,2119.3,2.10672349]
[1770671708616,2.15840414,2120.2,2119.4,2.10671633]
[1770671708831,1.17917374,2120.2,2119.5,0.92713767]
[1770671710708,0.002,2120.3,2119.6,2.10660549]
[1770671710919,0.002,2120.0,2119.6,2.10660549]
[1770671711746,0.002,2120.0,2119.6,0.92713767]
[1770671711939,0.002,2120.0,2119.4,0.92713767]
[1770671712112,0.002,2120.0,2119.4,2.10671377]
[1770671712321,0.002,2120.0,2119.3,1.17959916]
[1770671712522,0.002,2120.0,2119.4,1.17956958]
[1770671712721,0.002,2120.0,2119.4,0.92713767]
[1770671714852,0.002,2120.0,2119.5,2.10666114]
[1770671717471,0.002,2120.0,2119.4,1.17953478]
[1770671717754,0.002,2120.0,2119.3,1.17959851]
[1770671719030,0.9812304,2120.0,2119.2,4.47664546]
[1770671719228,1.17930091,2119.9,2119.2,3.297]
[1770671719532,2.14824866,2119.9,2119.2,3.297]
[1770671721737,2.14824866,2119.9,2119.2,4.47668801]
[1770671721936,1.17930091,2119.9,2119.2,5.41185092]
[1770671722887,0.91312465,2119.8,2119.2,3.297]
[1770671723373,0.96944153,2119.8,2119.0,0.001]
[1770671723862,0.91312465,2119.6,2119.0,0.001]
[1770671725237,0.96944153,2119.6,2119.0,0.001]
[1770671725739,0.91312465,2119.4,2119.0,0.001]
[1770671728467,1.17963478,2119.3,2119.0,0.001]
[1770671729074,0.96944153,2119.2,2118.5,0.001]
[1770671729290,0.91312465,2118.8,2118.0,2.11549252]
[1770671729963,0.91312465,2118.8,2118.0,2.1155192]
[1770671730362,0.91312465,2118.8,2118.0,0.93516291]
[1770671730567,5.39009349,2118.7,2117.9,0.001]
[1770671730741,5.39009349,2118.7,2117.9,0.93616291]
[1770671731253,0.91312465,2118.6,2117.9,0.001]
[1770671731458,0.96944153,2118.5,2117.9,0.001]
[1770671732688,2.09337202,2118.2,2117.9,0.001]
[1770671733047,0.91312465,2118.2,2117.9,0.001]
[1770671734665,1.18009491,2118.5,2117.9,0.001]
[1770671734865,1.18006801,2118.6,2117.9,0.001]
[1770671735269,1.18006801,2118.6,2118.1,0.001]
[1770671735447,4.21012465,2118.7,2118.1,0.001]
[1770671735448,5.39013648,2118.7,2118.1,0.001]
[1770671735645,3.297,2118.7,2118.1,0.001]
[1770671735870,1.17974914,2119.1,2118.2,0.93516291]
[1770671736243,5.39085038,2119.2,2118.2,0.93516291]
[1770671736850,5.39085038,2119.2,2118.3,1.18019166]
[1770671737048,0.91312465,2119.1,2118.3,1.18019166]
[1770671737455,4.47772573,2119.2,2118.3,2.11535457]
[1770671737659,5.44716726,2119.2,2118.3,2.11535457]
[1770671741676,5.44716726,2119.2,2118.4,0.93516291]
[1770671741865,5.39085038,2119.2,2118.4,0.93516291]
[1770671742179,2.09264812,2119.6,2118.4,0.93516291]
[1770671742386,8.92939836,2119.5,2118.4,0.93516291]
[1770671742690,4.21112465,2119.5,2118.4,0.93516291]
[1770671742860,3.298,2119.5,2118.4,0.93516291]
[1770671743261,3.298,2119.5,2118.6,0.93516291]
[1770671743877,3.298,2119.5,2118.8,0.93516291]
[1770671744581,4.47927246,2120.0,2118.8,0.93516291]
[1770671745381,3.3,2120.0,2118.8,0.93516291]
[1770671745587,4.47924614,2120.0,2118.8,0.93516291]
[1770671746080,4.47924614,2120.0,2119.0,0.93516291]
[1770671746658,0.05631688,2119.7,2118.9,1.17985747]
[1770671746858,0.05631688,2119.7,2118.9,2.11502038]
[1770671747868,0.002,2119.8,2119.0,0.93516291]
[1770671748069,0.002,2119.8,2119.2,0.93516291]
[1770671750764,0.002,2119.8,2119.4,0.9104435]
[1770671754393,0.002,2119.8,2119.5,1.17952347]
[1770671758402,0.002,2119.8,2119.3,1.1796002]
[1770671758403,0.91741503,2119.8,2119.3,1.1796002]
[1770671758695,2.09678999,2119.8,2119.1,1.17974611]
[1770671758862,0.91541503,2119.7,2118.8,0.9104435]
[1770671759066,0.91541503,2119.6,2119.0,1.17979626]
[1770671759293,0.91741503,2119.6,2118.9,1.17983148]
[1770671759994,0.91741503,2119.6,2119.0,1.17979327]
[1770671760196,0.97373191,2119.6,2118.9,1.1798369]
[1770671760495,0.97373191,2119.6,2119.0,1.17979745]
[1770671760695,0.002,2119.6,2119.0,1.17979745]
[1770671761022,0.002,2119.6,2119.0,2.09024095]
[1770671762894,0.002,2120.2,2119.5,0.9104435]
[1770671763097,0.002,2120.2,2119.3,1.17963478]
[1770671763098,0.002,2120.4,2119.8,0.9104435]
[1770671764599,0.002,2120.4,2119.5,0.9104435]
[1770671765020,0.002,2120.4,2119.7,0.9104435]
[1770671767615,0.002,2120.4,2119.8,1.17935654]
[1770671771214,0.002,2120.2,2119.8,1.17935654]
[1770671774119,0.91741503,2120.2,2119.7,0.001]
[1770671774318,0.91741503,2120.2,2119.7,1.1804083]
[1770671774508,0.91741503,2120.2,2119.7,0.001]
[1770671774912,0.91541503,2120.0,2119.7,0.001]
[1770671775105,0.91541503,2120.0,2119.5,0.001]
[1770671776395,0.91541503,2119.7,2119.5,0.001]
[1770671776600,0.97173191,2119.7,2118.7,0.001]
[1770671776800,0.91541503,2119.2,2118.7,0.001]
[1770671778322,1.17974611,2119.1,2118.7,0.001]
[1770671778831,2.09515043,2119.2,2118.7,0.001]
[1770671783602,6.33,2119.8,2118.7,0.92593372]
[1770671783833,0.93152459,2120.0,2118.7,0.92593372]
[1770671784010,0.98784147,2119.5,2118.7,0.001]
[1770671784205,0.98784147,2119.5,2118.9,0.001]
[1770671785841,0.98784147,2119.3,2118.9,0.001]
[1770671788025,1.17969044,2119.2,2118.9,0.001]
[1770671789161,2.11121503,2119.2,2118.9,0.001]
[1770671792249,0.93152459,2119.2,2118.9,0.001]
[1770671792453,2.11115363,2119.4,2118.9,0.001]
[1770671792752,0.93152459,2119.3,2118.9,0.001]
[1770671792960,1.17962904,2119.4,2118.9,0.001]
[1770671793335,2.11115363,2119.4,2118.9,0.001]
[1770671794354,1.17955918,2119.5,2118.9,0.001]
[1770671794650,0.93152459,2119.4,2118.9,0.001]
[1770671794956,1.17963478,2119.3,2118.9,0.001]
[1770671795334,0.93152459,2119.2,2118.9,0.001]
[1770671795632,0.98784147,2119.1,2118.9,0.001]
[1770671796350,0.98784147,2119.1,2118.7,0.001]
[1770671796530,0.93152459,2118.9,2118.7,0.001]
[1770671796728,3.297,2119.0,2118.7,0.001]
[1770671796927,1.17985747,2118.9,2118.7,0.001]
[1770671797327,1.17985747,2118.9,2118.5,0.001]
[1770671797730,1.23617435,2118.9,2118.5,0.001]
[1770671798331,0.93152459,2118.8,2118.5,0.001]
[1770671798527,0.05631688,2118.7,2118.5,0.001]
[1770671798753,0.98784147,2118.7,2118.5,0.001]
[1770671799153,2.11154913,2118.6,2118.1,0.001]
[1770671799359,3.297,2118.5,2118.1,0.001]
[1770671799747,4.28484147,2118.5,2118.1,0.001]
[1770671799955,0.93152459,2118.3,2118.1,0.001]
[1770671801096,0.98784147,2118.2,2118.1,0.001]
[1770671801370,1.1803031,2118.1,2117.8,0.001]
[1770671801734,2.11182769,2118.1,2117.8,0.001]
[1770671802251,3.298,2118.0,2117.8,0.001]
[1770671803867,4.47836338,2118.0,2117.8,0.001]
[1770671806775,0.98784147,2117.9,2117.7,0.001]
[1770671807244,4.47836289,2118.0,2117.7,0.001]
[1770671807444,5.40988748,2118.0,2117.7,0.001]
[1770671807660,0.93152459,2117.9,2117.7,0.001]
[1770671808050,0.98784147,2117.9,2117.7,0.001]
[1770671808273,0.98784147,2117.9,2117.6,0.001]
[1770671808453,2.11199488,2117.8,2117.6,0.001]
[1770671809057,0.05631688,2117.7,2117.6,0.001]
[1770671809573,0.98864613,2117.7,2117.6,0.001]
[1770671810148,0.98864613,2117.7,2117.0,0.001]
[1770671810357,2.11296679,2117.5,2117.0,0.001]
[1770671810669,0.05631688,2117.1,2117.0,0.001]
[1770671810874,3.299,2117.2,2117.0,0.001]
[1770671812260,3.299,2117.2,2117.0,0.97372025]
[1770671812775,3.299,2117.2,2117.1,0.97272025]
[1770671813153,1.18054948,2117.7,2117.1,0.97272025]
[1770671815350,1.23686636,2117.7,2117.0,0.001]
[1770671815575,2.16919561,2117.7,2117.0,0.001]
[1770671815781,0.93232925,2117.6,2117.0,0.001]
[1770671816151,0.05631688,2117.5,2117.0,0.001]
[1770671817579,1.1806933,2117.4,2117.0,0.001]
[1770671817985,0.05631688,2117.3,2117.0,0.001]
[1770671819468,0.98864613,2117.3,2117.0,0.001]
[1770671819671,0.05631688,2117.1,2117.0,0.001]
[1770671820258,0.98864613,2117.1,2116.2,2.15405016]
[1770671820750,0.98864613,2117.1,2116.3,1.18129823]
[1770671820952,0.98864613,2117.1,2116.2,2.15403889]
[1770671821589,0.98864613,2117.1,2116.3,0.97272025]
[1770671821768,2.11318986,2117.1,2117.0,0.001]
[1770671822094,2.11318986,2117.1,2116.3,0.97272025]
[1770671822798,2.11318986,2117.1,2116.3,2.15402532]
[1770671823575,1.18073196,2117.4,2116.4,0.97272025]
[1770671823894,0.002,2117.5,2116.6,0.97272025]
[1770671826098,0.002,2117.5,2116.7,2.15380401]
[1770671826696,0.002,2117.5,2116.5,1.18119389]
[1770671826697,0.05631688,2117.3,2116.5,1.18119389]
[1770671826900,0.05631688,2117.3,2116.6,0.97272025]
[1770671827099,0.05631688,2117.1,2116.4,2.15397132]
[1770671828382,1.18086061,2117.1,2116.5,2.1539096]
[1770671828588,1.18086061,2117.1,2116.5,0.97272025]
[1770671828992,1.23717749,2117.1,2116.3,2.15401929]
[1770671829489,1.23717749,2117.1,2116.3,0.97272025]
[1770671829901,1.23717749,2117.1,2116.3,2.15402254]
[1770671831780,1.18086061,2117.1,2116.4,0.97272025]
[1770671832088,1.23717749,2117.1,2116.4,0.97272025]
[1770671833810,2.16950674,2117.1,2116.2,2.15403911]
[1770671834308,0.98864613,2116.9,2116.2,0.97272025]
[1770671834609,0.98864613,2116.9,2116.6,0.001]
[1770671834813,0.98864613,2116.7,2116.1,0.001]
[1770671835202,0.05631688,2116.9,2116.1,0.001]
[1770671835203,0.93232925,2116.9,2116.4,0.001]
[1770671835513,0.98864613,2116.8,2116.4,0.001]
[1770671835694,1.18108376,2116.7,2116.4,0.001]
[1770671835897,2.16972989,2116.7,2116.4,0.001]
[1770671836798,0.93232925,2116.6,2116.4,0.001]
[1770671837416,1.18108376,2116.7,2116.4,0.001]
[1770671837804,4.72433504,2116.8,2116.4,0.001]
[1770671838119,1.18102796,2116.8,2116.4,0.001]
[1770671839090,2.11335721,2116.8,2116.4,0.001]
[1770671839494,0.05631688,2116.7,2116.4,0.001]
[1770671839808,1.18113956,2116.6,2116.4,0.001]
[1770671840320,1.18113956,2116.6,2116.1,0.001]
[1770671840321,1.00666319,2116.5,2116.1,0.001]
[1770671841921,1.18125118,2116.4,2116.1,0.001]
[1770671842092,1.18125118,2116.4,2115.7,3.301]
[1770671842288,1.18125118,2116.4,2115.7,5.41134077]
[1770671843926,1.00666319,2116.3,2115.5,0.001]
[1770671844129,0.95034631,2116.2,2115.5,0.001]
[1770671844303,0.05631688,2116.1,2115.5,0.001]
[1770671844509,0.95034631,2116.2,2115.5,0.001]
[1770671846001,0.05631688,2116.1,2115.5,0.001]
[1770671846326,1.23773552,2116.1,2115.5,0.92970152]
[1770671846908,1.23773552,2116.1,2115.5,0.001]
[1770671847710,2.18808183,2116.1,2115.3,0.92870152]
[1770671848041,2.18808183,2116.1,2115.3,2.11056626]
[1770671848042,0.05631688,2116.0,2115.3,2.11056626]
[1770671848327,3.302,2116.1,2115.6,0.92970152]
[1770671848536,4.72545704,2116.2,2115.6,0.92970152]
[1770671848850,8.02745704,2116.2,2115.6,0.92970152]
[1770671849127,0.05631688,2116.1,2115.6,0.001]
[1770671849502,8.97780335,2116.2,2115.6,0.001]
[1770671849704,1.00666319,2116.1,2115.6,0.001]
[1770671850404,1.18147448,2116.0,2115.6,0.001]
[1770671852011,2.13182079,2116.0,2115.6,0.001]
[1770671852216,0.2466,2114.5,2113.4,0.92870152]
[1770671852459,0.05631688,2114.4,2113.4,0.92870152]
[1770671852649,3.302,2114.5,2113.4,0.92870152]
[1770671852938,0.05631688,2114.4,2113.4,0.92870152]
[1770671853439,0.05631688,2114.3,2112.9,0.92870152]
[1770671853939,1.00666319,2114.3,2112.9,0.92870152]
[1770671854336,1.18248037,2114.2,2112.9,0.92870152]
[1770671854637,1.18248037,2114.2,2113.0,0.92870152]
[1770671855208,2.18914356,2114.2,2113.0,0.92870152]
[1770671855416,0.95034631,2114.1,2113.0,0.92870152]
[1770671855819,1.00666319,2114.0,2112.7,0.92870152]
[1770671856541,1.18276008,2113.7,2112.7,0.92870152]
[1770671856743,2.13310639,2113.7,2112.7,0.92870152]
[1770671857346,1.18276008,2113.7,2112.7,0.92870152]
[1770671857649,1.18276008,2113.7,2112.8,0.92870152]
[1770671858650,4.73104035,2113.8,2112.8,0.92870152]
[1770671858859,4.78735723,2113.8,2112.8,2.11196208]
[1770671859269,0.05631688,2113.6,2112.6,0.92870152]
[1770671859768,1.00666319,2113.6,2112.6,0.92870152]
[1770671860284,0.05631688,2113.7,2112.7,0.92870152]
[1770671860437,5.68138666,2113.8,2112.8,0.92870152]
[1770671860626,5.68138666,2113.8,2113.0,0.001]
[1770671861753,4.73104035,2113.8,2113.0,0.001]
[1770671862062,0.05631688,2113.3,2112.8,0.001]
[1770671862271,0.05631688,2113.5,2112.8,0.001]
[1770671862654,0.05631688,2113.5,2111.5,1.18398412]
[1770671862655,1.18337593,2112.6,2111.5,1.18398412]
[1770671862852,4.7323837,2113.2,2111.8,10.65509427]
[1770671863155,4.7323837,2113.2,2111.5,1.18398412]
[1770671863156,4.7323837,2113.2,2111.5,1.342701]
[1770671863368,4.7323837,2113.2,2111.7,0.1024]
[1770671863728,4.7323837,2113.2,2111.8,3.305]
[1770671864254,4.7323837,2113.2,2111.8,0.2335703]
[1770671864460,4.7323837,2113.2,2111.9,3.305]
[1770671864633,1.18303993,2113.3,2111.9,1.18376817]
[1770671864634,2.13338624,2113.3,2111.9,1.18376817]
[1770671864828,2.13338624,2113.3,2112.0,3.305]
[1770671865425,2.18970312,2113.3,2111.7,0.1024]
[1770671865632,2.18970312,2113.3,2111.7,1.18384093]
[1770671865633,0.95034631,2113.2,2111.7,1.18384093]
[1770671865834,0.95034631,2113.2,2111.8,4.48881824]
[1770671866044,1.00666319,2113.1,2111.8,4.48881824]
[1770671866246,1.00666319,2113.1,2111.9,3.305]
[1770671866461,1.00666319,2113.1,2111.5,1.28634766]
[1770671866643,1.00666319,2113.1,2111.6,3.305]
[1770671866846,2.13349822,2113.0,2111.6,4.48893291]
[1770671867046,0.05631688,2112.9,2111.7,0.92870152]
[1770671867447,1.18315191,2113.0,2111.7,0.92870152]
[1770671867654,2.13349822,2113.0,2111.7,0.92870152]
[1770671868059,1.00666319,2112.9,2111.7,0.92870152]
[1770671868237,0.05631688,2112.7,2111.7,0.92870152]
[1770671868443,0.05631688,2112.7,2111.5,5.41868932]
[1770671868444,1.00666319,2112.7,2111.5,5.41868932]
[1770671868644,1.00666319,2112.7,2111.5,4.23470152]
[1770671868844,1.18337593,2112.6,2111.5,4.23470152]
[1770671869068,1.18337593,2112.6,2111.6,0.92870152]
[1770671869245,0.95034631,2112.9,2111.7,4.23470152]
[1770671870546,1.04167754,2112.8,2111.7,0.92870152]
[1770671870864,2.16868058,2112.7,2111.7,5.41855947]
[1770671871371,2.16868058,2112.7,2112.0,0.003]
[1770671871566,1.18331992,2112.7,2112.0,0.003]
[1770671871765,5.71773501,2113.2,2112.0,0.94410114]
[1770671871966,1.04167754,2113.1,2112.0,4.25010114]
[1770671872354,0.98536066,2113.1,2112.0,0.003]
[1770671872675,0.98536066,2112.9,2112.0,0.003]
[1770671872851,1.18326391,2112.8,2112.0,0.003]
[1770671873345,1.18326391,2112.8,2112.0,0.94410114]
[1770671873672,1.18325118,2112.9,2112.0,0.94410114]
[1770671873974,2.16861184,2112.9,2112.0,0.003]
[1770671874873,1.18309592,2113.1,2112.1,2.12475721]
[1770671875461,2.16845658,2113.1,2112.1,2.12475721]
[1770671876174,1.18309592,2113.1,2112.2,0.94110114]
[1770671876563,1.18309592,2113.1,2112.3,3.307]
[1770671876969,2.16828864,2113.4,2112.4,1.18348797]
[1770671878652,2.16828864,2113.4,2112.4,2.12458911]
[1770671879357,2.22432572,2113.9,2112.5,0.94110114]
[1770671879555,0.98536066,2113.8,2112.5,0.94110114]
[1770671880252,1.18264818,2113.9,2112.6,0.94110114]
[1770671880452,1.13264818,2113.9,2112.7,0.94110114]
[1770671880852,0.002,2114.3,2112.8,10.65509427]
[1770671881052,1.18248037,2114.2,2112.9,0.94110114]
[1770671881458,5.71715243,2114.3,2113.1,0.94110114]
[1770671881767,5.71715243,2114.3,2113.3,0.94110114]
[1770671881768,0.002,2114.3,2113.3,0.94110114]
[1770671881966,0.002,2114.3,2113.4,3.307]
[1770671882161,0.002,2114.3,2113.5,0.94110114]
[1770671882383,0.002,2114.3,2113.6,4.24810114]
[1770671882681,0.002,2114.3,2113.7,0.94110114]
[1770671882884,0.002,2114.3,2113.8,3.307]
[1770671883087,0.002,2114.3,2113.8,0.94110114]
[1770671883406,0.002,2114.3,2114.0,1.18259224]
[1770671883702,0.002,2114.5,2114.0,1.18259224]
[1770671884756,0.98536066,2115.6,2114.1,0.94110114]
[1770671884994,0.98536066,2115.5,2114.3,0.94110114]
[1770671885165,0.98536066,2115.5,2114.2,0.5]
[1770671885370,0.98536066,2115.5,2114.3,3.306]
[1770671885885,0.98536066,2115.3,2114.4,1.18236852]
[1770671886087,1.18179671,2115.5,2114.4,1.18236852]